fUSD/lending_fUSD_20251221
["ID","MTS","AMOUNT","RATE_DAILY","PERIOD"]
[399363004,1766315856142,200.0,0.00035616,30]
[399363005,1766315856220,151.0,0.00035616,30]
[399363006,1766315856285,1000.0,0.00035616,30]
[399363007,1766315856358,220.0,0.00035616,30]
[399363008,1766315856454,200.0,0.00035616,30]
[399363009,1766315856756,200.0,0.00035616,30]
[399363010,1766315856837,151.0,0.00035616,30]
[399363011,1766315856891,1000.0,0.00035616,30]
[399363012,1766315856952,220.0,0.00035616,30]
[399363013,1766315857044,200.0,0.00035616,30]
[399363014,1766315857084,151.0,0.00035616,30]
[399363015,1766315857353,200.0,0.00035616,30]
[399363016,1766315857490,1000.0,0.00035616,30]
[399363017,1766315857522,151.0,0.00035616,30]
[399363018,1766315857577,220.65667203,0.00035616,30]
[399363019,1766315857646,200.0,0.00035616,30]
[399363020,1766315857705,151.0,0.00035616,30]
[399363021,1766315858096,151.0,0.00035616,30]
[399363022,1766315858129,1000.0,0.00035616,30]
[399363023,1766315858305,200.0,0.00035616,30]
[399363024,1766315858351,151.0,0.00035616,30]
[399363025,1766315858743,151.0,0.00035616,30]
[399363026,1766315858781,1000.0,0.00035616,30]
[399363027,1766315858918,151.0,0.00035616,30]
[399363028,1766315859354,151.0,0.00035616,30]
[399363029,1766315859392,1000.0,0.00035616,30]
[399363030,1766315859511,151.0,0.00035616,30]
[399363031,1766315859955,151.0,0.00035616,30]
[399363032,1766315859990,1000.0,0.00035616,30]
[399363033,1766315860103,151.0,0.00035616,30]
[399363034,1766315860571,500.0,0.00035,30]
[399363035,1766315860605,151.0,0.00035616,30]
[399363036,1766315860639,1000.0,0.00035616,30]
[399363037,1766315860707,205.94369474,0.00035616,30]
[399363038,1766315861165,151.0,0.00035616,30]
[399363039,1766315861211,1000.0,0.00035616,30]
[399363040,1766315861849,1000.0,0.00035616,30]
[399363041,1766315861907,414.0,0.00035616,30]
[399363043,1766315862527,429.318,0.00035616,30]
[399363055,1766315863647,1000.0,0.00035616,30]
[399363056,1766315863689,445.202766,0.00035616,30]
[399363057,1766315863754,461.67526834,0.00035616,30]
[399363058,1766315864375,478.75725327,0.00035616,30]
[399363059,1766315864972,496.47127164,0.00035616,30]
[399363060,1766315865576,514.84070869,0.00035616,30]
[399363061,1766315866186,533.88981491,0.00035616,30]
[399363062,1766315866803,553.64373807,0.00035616,30]
[399363063,1766315867995,574.12855637,0.00035616,30]
[399363064,1766315868654,595.37131296,0.00035616,30]
[399363065,1766315868758,2000.0,0.0003561,30]
[399363066,1766315868871,250.0,0.00035616,30]
[399363067,1766315869284,617.40005154,0.00035616,30]
[399363068,1766315869521,250.0,0.00035616,30]
[399363069,1766315869560,2000.0,0.0003561,30]
[399363070,1766315869938,640.24385345,0.00035616,30]
[399363071,1766315870120,250.0,0.00035616,30]
[399363072,1766315870555,663.93287602,0.00035616,30]
[399363073,1766315870721,250.0,0.00035616,30]
[399363074,1766315871334,250.0,0.00035616,30]
[399363075,1766315871690,688.49839244,0.00035616,30]
[399363076,1766315871950,250.0,0.00035616,30]
[399363077,1766315872318,713.97283296,0.00035616,30]
[399363078,1766315872577,250.0,0.00035616,30]
[399363079,1766315872986,740.38982778,0.00035616,30]
[399363080,1766315873190,250.0,0.00035616,30]
[399363081,1766315873747,500.0,0.000355,30]
[399363082,1766315873793,767.7842514,0.00035616,30]
[399363083,1766315873852,250.0,0.00035616,30]
[399363084,1766315874214,251.72212238,0.00035616,30]
[399363085,1766315874411,250.0,0.00035616,30]
[399363086,1766315875009,362.8612033,0.00035616,30]
[399363088,1766315883068,150.0,0.0001263,2]
[399363089,1766315885804,-5000000.0,0.00042693,7]
[399363090,1766315891282,-5000000.0,0.00042693,7]
[399363091,1766315895177,-5000000.0,0.00042693,7]
[399363092,1766315900139,-1717745.12055524,0.00042693,7]
[399363093,1766315900168,-3282254.87944476,0.00042693,7]
[399363128,1766315913673,-729.86140652,0.00042693,10]
[399363129,1766315913701,-1000.01505144,0.00042693,15]
[399363130,1766315913729,-1018.46235921,0.00042693,20]
[399363131,1766315913758,-300.0,0.00042693,15]
[399363132,1766315913786,-1000.0,0.00042693,10]
[399363133,1766315913813,-500.0,0.00042693,10]
[399363134,1766315913841,-232.98439038,0.00042693,14]
[399363135,1766315913869,-194.94831291,0.00042693,10]
[399363136,1766315913897,-231.67652366,0.00042693,15]
[399363137,1766315913928,-275.0,0.00042693,14]
[399363138,1766315913956,-633.55037844,0.00042693,14]
[399363139,1766315913984,-150.0,0.00042693,14]
[399363140,1766315914012,-1619.86190864,0.00042693,10]
[399363141,1766315914041,-1296.84428333,0.00042693,15]
[399363142,1766315914069,-1636.3045227,0.00042693,18]
[399363143,1766315914096,-4658.37995663,0.00042693,15]
[399363144,1766315914124,-1651.87,0.00042693,12]
[399363145,1766315914151,-1308595.6059882,0.00042693,30]
[399363146,1766315914184,-50000.0,0.00042693,30]
[399363147,1766315914213,-50000.0,0.00042693,31]
[399363148,1766315914242,-50000.0,0.00042693,32]
[399363149,1766315914272,-50000.0,0.00042693,33]
[399363150,1766315914300,-50000.0,0.00042693,34]
[399363151,1766315914329,-50000.0,0.00042693,35]
[399363152,1766315914356,-50000.0,0.00042693,36]
[399363153,1766315914384,-50000.0,0.00042693,37]
[399363154,1766315914412,-50000.0,0.00042693,38]
[399363155,1766315914440,-50000.0,0.00042693,39]
[399363156,1766315914470,-194.54114277,0.00042693,30]
[399363157,1766315914497,-575.14284476,0.00042693,30]
[399363158,1766315914525,-3263.23366938,0.00042693,30]
[399363159,1766315914552,-4936.6313243,0.00042693,30]
[399363160,1766315914579,-440.49040998,0.00042693,30]
[399363161,1766315914606,-1037.93474714,0.00042693,30]
[399363162,1766315914634,-688.51823719,0.00042693,30]
[399363163,1766315914671,-20000.0,0.00042693,30]
[399363164,1766315914700,-297.05441526,0.00042693,30]
[399363165,1766315914728,-808.11266376,0.00042693,30]
[399363166,1766315914756,-808.11266376,0.00042693,30]
[399363167,1766315914784,-808.11266376,0.00042693,30]
[399363168,1766315914811,-808.11266376,0.00042693,30]
[399363169,1766315914838,-808.11266376,0.00042693,30]
[399363170,1766315914864,-808.11266376,0.00042693,30]
[399363171,1766315914891,-808.11266376,0.00042693,30]
[399363172,1766315914917,-808.11266376,0.00042693,30]
[399363173,1766315914943,-808.11266376,0.00042693,30]
[399363174,1766315914970,-808.11266376,0.00042693,30]
[399363175,1766315914997,-808.11266376,0.00042693,30]
[399363176,1766315915439,-808.11266376,0.00042693,30]
[399363177,1766315915469,-808.11266376,0.00042693,30]
[399363178,1766315915497,-808.11266375,0.00042693,30]
[399363179,1766315915525,-808.11266375,0.00042693,30]
[399363180,1766315915554,-808.11266375,0.00042693,30]
[399363181,1766315915582,-808.11266375,0.00042693,30]
[399363182,1766315915608,-808.11266375,0.00042693,30]
[399363183,1766315915636,-808.11266375,0.00042693,30]
[399363184,1766315915663,-808.11266375,0.00042693,30]
[399363185,1766315915690,-306.07753249,0.00042693,30]
[399363186,1766315915716,-539.42763994,0.00042693,30]
[399363187,1766315915743,-403.32661972,0.00042693,30]
[399363188,1766315915770,-2114075.08932212,0.00042693,30]
[399363189,1766315915797,-204.21542799,0.00042693,30]
[399363190,1766315915826,-925.10729784,0.00042693,30]
[399363191,1766315915853,-1180.8335999,0.00042693,30]
[399363192,1766315915880,-2133.59889622,0.00042693,30]
[399363193,1766315915907,-780.49301135,0.00042693,30]
[399363194,1766315915934,-395.66407183,0.00042693,30]
[399363195,1766315915960,-240.77543611,0.00042693,30]
[399363196,1766315915986,-1748.00173948,0.00042693,30]
[399363197,1766315916013,-1487.91642652,0.00042693,30]
[399363198,1766315916041,-153.23499857,0.00042693,30]
[399363199,1766315916067,-905.93065352,0.00042693,30]
[399363200,1766315916094,-378.44822129,0.00042693,30]
[399363201,1766315916121,-914.78441134,0.00042693,30]
[399363202,1766315916149,-2399.18003293,0.00042693,14]
[399363203,1766315916176,-2753.76815595,0.00042693,30]
[399363204,1766315916204,-985.351967,0.00042693,30]
[399363205,1766315916231,-2086.96008499,0.00042693,30]
[399363206,1766315916258,-220.52319658,0.00042693,30]
[399363207,1766315916284,-1018.24826519,0.00042693,30]
[399363208,1766315916310,-2337.0983848,0.00042693,10]
[399363209,1766315916337,-372.02921089,0.00042693,30]
[399363210,1766315916364,-2364.05715398,0.00042693,10]
[399363211,1766315916391,-192.49318129,0.00042693,30]
[399363212,1766315916418,-1071.83298903,0.00042693,30]
[399363213,1766315916445,-269.61268155,0.00042693,30]
[399363214,1766315916475,-997.0,0.00042693,30]
[399363215,1766315916504,-201.975449,0.00042693,30]
[399363216,1766315916533,-227.00662174,0.00042693,30]
[399363217,1766315916560,-935.97409973,0.00042693,30]
[399363218,1766315916586,-246.32819618,0.00042693,30]
[399363219,1766315916612,-202.65563024,0.00042693,30]
[399363220,1766315916638,-283.00532196,0.00042693,30]
[399363221,1766315916666,-2099.45942025,0.00042693,30]
[399363222,1766315916693,-1882.56679363,0.00042693,30]
[399363223,1766315916719,-215.9682741,0.00042693,31]
[399363224,1766315916745,-1566.09622843,0.00042693,30]
[399363225,1766315916772,-1947.15887558,0.00042693,30]
[399363226,1766315916797,-2419.25579451,0.00042693,30]
[399363227,1766315916823,-539.4001672,0.00042693,30]
[399363228,1766315916849,-3415.63087047,0.00042693,52]
[399363229,1766315916875,-1098.21072924,0.00042693,30]
[399363230,1766315916901,-1411.80442131,0.00042693,30]
[399363231,1766315916927,-2076.91369634,0.00042693,30]
[399363232,1766315916953,-1244.76303463,0.00042693,30]
[399363233,1766315916981,-396.18562032,0.00042693,30]
[399363234,1766315917009,-1521.18668763,0.00042693,30]
[399363235,1766315917038,-3413.28804026,0.00042693,30]
[399363236,1766315917066,-491.72007673,0.00042693,30]
[399363237,1766315917095,-5325.7212326,0.00042693,30]
[399363238,1766315917123,-1716.12680137,0.00042693,30]
[399363239,1766315917151,-183.87769653,0.00042693,58]
[399363240,1766315917181,-1877.03252161,0.00042693,30]
[399363241,1766315917211,-240.59114181,0.00042693,30]
[399363242,1766315917241,-2517.84700426,0.00042693,31]
[399363243,1766315917272,-300.0,0.00042693,15]
[399363244,1766315917300,-1000.0,0.00042693,30]
[399363245,1766315917328,-160.0,0.00042693,30]
[399363246,1766315917356,-160.0,0.00042693,30]
[399363247,1766315917384,-160.0,0.00042693,30]
[399363248,1766315917411,-2711.74714153,0.00042693,30]
[399363249,1766315917437,-2016.12675764,0.00042693,30]
[399363250,1766315917466,-1000.0,0.00042693,30]
[399363251,1766315917494,-1000.0,0.00042693,14]
[399363252,1766315917522,-225538.96121966,0.00042693,30]
[399363253,1766315917551,-709093.16867513,0.00042693,30]
[399363254,1766315922133,-5000000.0,0.00042693,30]
[399363264,1766315936544,-5000000.0,0.00042693,30]
[399363265,1766315939588,-5000000.0,0.00042693,30]
[399363266,1766315940566,2000.0,0.0003561,30]
[399363267,1766315942466,-3011539.48849316,0.00042693,30]
[399363268,1766315942494,-14826.10345958,0.00042693,30]
[399363269,1766315942522,-341.1185182,0.00042693,38]
[399363270,1766315942550,-300.0,0.00042693,30]
[399363271,1766315942575,-300.0,0.00042693,30]
[399363272,1766315942602,-300.0,0.00042693,30]
[399363273,1766315942629,-300.0,0.00042693,30]
[399363274,1766315942655,-300.0,0.00042693,30]
[399363275,1766315942681,-300.0,0.00042693,30]
[399363276,1766315942706,-300.0,0.00042693,30]
[399363277,1766315942733,-300.0,0.00042693,30]
[399363278,1766315942759,-300.0,0.00042693,30]
[399363279,1766315942784,-300.0,0.00042693,30]
[399363280,1766315942810,-308.0,0.00042693,30]
[399363281,1766315942835,-300.0,0.00042693,30]
[399363282,1766315942860,-300.0,0.00042693,30]
[399363283,1766315942885,-300.0,0.00042693,30]
[399363284,1766315942924,-14305.19830531,0.00042693,30]
[399363285,1766315942952,-1000.0,0.00042693,30]
[399363286,1766315942979,-22500.000001,0.00042693,30]
[399363287,1766315943007,-1174.9863743,0.00042693,31]
[399363288,1766315943035,-1000.0,0.00042693,30]
[399363289,1766315943061,-1000.0,0.00042693,30]
[399363290,1766315943089,-1000.0,0.00042693,30]
[399363291,1766315943116,-1000.0,0.00042693,30]
[399363292,1766315943142,-1000.0,0.00042693,30]
[399363293,1766315943169,-1000.0,0.00042693,30]
[399363294,1766315943195,-598.09470545,0.00042693,30]
[399363295,1766315943223,-155.77714131,0.00042693,30]
[399363296,1766315943251,-159.06480175,0.00042693,30]
[399363297,1766315943277,-167.04098807,0.00042693,30]
[399363298,1766315943308,-50000.0,0.00042693,40]
[399363299,1766315943333,-3704.84874124,0.00042693,30]
[399363300,1766315943364,-606.32269604,0.00042693,30]
[399363301,1766315943393,-181096.73973115,0.00042693,30]
[399363302,1766315943420,-2750.78519782,0.00042693,30]
[399363303,1766315943448,-22879.54004804,0.00042693,30]
[399363304,1766315943478,-293.54369604,0.00042693,30]
[399363305,1766315943508,-9105.18053318,0.00042693,55]
[399363306,1766315943535,-188417.66534923,0.00042693,30]
[399363307,1766315943563,-5796.09071721,0.00042693,30]
[399363308,1766315943590,-400.0,0.00042693,30]
[399363309,1766315943618,-400.0,0.00042693,30]
[399363310,1766315944129,-400.0,0.00042693,30]
[399363311,1766315944170,-400.0,0.00042693,30]
[399363312,1766315944198,-400.0,0.00042693,30]
[399363313,1766315944224,-400.0,0.00042693,30]
[399363314,1766315944250,-400.0,0.00042693,30]
[399363315,1766315944276,-400.0,0.00042693,30]
[399363316,1766315944303,-400.0,0.00042693,30]
[399363317,1766315944329,-400.0,0.00042693,30]
[399363318,1766315944356,-400.0,0.00042693,30]
[399363319,1766315944383,-400.0,0.00042693,30]
[399363320,1766315944413,-400.0,0.00042693,30]
[399363321,1766315944439,-400.0,0.00042693,30]
[399363322,1766315944467,-400.0,0.00042693,30]
[399363323,1766315944495,-400.0,0.00042693,30]
[399363324,1766315944522,-373.20776446,0.00042693,30]
[399363325,1766315944550,-500.0,0.00042693,56]
[399363326,1766315944576,-150.10637934,0.00042693,120]
[399363327,1766315944603,-150.02,0.00042693,120]
[399363328,1766315944630,-150.02,0.00042693,120]
[399363329,1766315944660,-150.02,0.00042693,120]
[399363330,1766315944687,-250.0,0.00042693,120]
[399363331,1766315944714,-278.99127791,0.00042693,120]
[399363332,1766315944740,-150.02,0.00042693,120]
[399363333,1766315944766,-150.02,0.00042693,120]
[399363334,1766315944793,-1000.0,0.00042693,30]
[399363335,1766315944820,-150.02,0.00042693,120]
[399363336,1766315944846,-150.02,0.00042693,120]
[399363337,1766315944873,-150.02,0.00042693,120]
[399363338,1766315944903,-1283.36476305,0.00042693,60]
[399363339,1766315944929,-150.02,0.00042693,120]
[399363340,1766315944956,-1000.0,0.00042693,30]
[399363341,1766315944984,-150.02,0.00042693,120]
[399363342,1766315945011,-1000.0,0.00042693,120]
[399363343,1766315945038,-500.0,0.00042693,120]
[399363344,1766315945064,-500.0,0.00042693,120]
[399363345,1766315945091,-500.0,0.00042693,120]
[399363346,1766315945117,-500.0,0.00042693,120]
[399363347,1766315945144,-500.0,0.00042693,120]
[399363348,1766315945172,-500.0,0.00042693,120]
[399363349,1766315945201,-500.0,0.00042693,120]
[399363350,1766315945231,-500.0,0.00042693,120]
[399363351,1766315945261,-500.0,0.00042693,120]
[399363352,1766315945289,-500.0,0.00042693,120]
[399363353,1766315945316,-500.0,0.00042693,120]
[399363354,1766315945343,-500.0,0.00042693,120]
[399363355,1766315945371,-500.0,0.00042693,120]
[399363356,1766315945398,-500.0,0.00042693,120]
[399363357,1766315945425,-500.0,0.00042693,120]
[399363358,1766315945452,-500.0,0.00042693,120]
[399363359,1766315945483,-500.0,0.00042693,120]
[399363360,1766315945512,-500.0,0.00042693,120]
[399363361,1766315945539,-500.0,0.00042693,120]
[399363362,1766315945566,-500.0,0.00042693,120]
[399363363,1766315945594,-500.0,0.00042693,120]
[399363364,1766315945622,-500.0,0.00042693,120]
[399363365,1766315945649,-618.13181587,0.00042693,120]
[399363366,1766315945676,-500.0,0.00042693,120]
[399363367,1766315945703,-500.0,0.00042693,120]
[399363368,1766315945729,-500.0,0.00042693,120]
[399363369,1766315945755,-547.47470779,0.00042693,120]
[399363370,1766315945782,-1000.0,0.00042693,30]
[399363371,1766315945808,-150.02,0.00042693,120]
[399363372,1766315945835,-1000.0,0.00042693,60]
[399363373,1766315945862,-150.02,0.00042693,120]
[399363374,1766315945890,-150.02,0.00042693,120]
[399363375,1766315945917,-150.02,0.00042693,120]
[399363376,1766315945944,-1170.19881765,0.00042693,120]
[399363377,1766315945972,-150.02,0.00042693,120]
[399363378,1766315946001,-1000.0,0.00042693,30]
[399363379,1766315946028,-1000.0,0.00042693,30]
[399363380,1766315946056,-255.307319,0.00042693,50]
[399363381,1766315946083,-1000.0,0.00042693,30]
[399363382,1766315946110,-1000.0,0.00042693,60]
[399363383,1766315946137,-1000.0,0.00042693,60]
[399363384,1766315946164,-505.69806431,0.00042693,120]
[399363385,1766315946193,-1000.0,0.00042693,30]
[399363386,1766315946220,-152.067628,0.00042693,50]
[399363387,1766315946247,-1000.0,0.00042693,30]
[399363388,1766315946274,-1000.0,0.00042693,120]
[399363389,1766315946300,-800.0,0.00042693,60]
[399363390,1766315946325,-196.63349029,0.00042693,120]
[399363391,1766315946355,-150.02,0.00042693,120]
[399363392,1766315946385,-151.0,0.00042693,30]
[399363393,1766315946412,-151.0,0.00042693,30]
[399363394,1766315946438,-151.0,0.00042693,30]
[399363395,1766315946467,-259.357152,0.00042693,30]
[399363396,1766315946494,-150.01,0.00042693,120]
[399363397,1766315946522,-151.0,0.00042693,50]
[399363398,1766315946551,-151.0,0.00042693,50]
[399363399,1766315946577,-151.0,0.00042693,50]
[399363400,1766315946605,-156.090241,0.00042693,50]
[399363401,1766315946632,-151.0,0.00042693,50]
[399363402,1766315946660,-217.015063,0.00042693,50]
[399363403,1766315946687,-153.361639,0.00042693,50]
[399363404,1766315946714,-876.15,0.00042693,120]
[399363405,1766315946996,-876.15,0.00042693,120]
[399363406,1766315947025,-876.15,0.00042693,120]
[399363407,1766315947052,-876.15,0.00042693,120]
[399363408,1766315947078,-876.15,0.00042693,120]
[399363409,1766315947105,-876.15,0.00042693,120]
[399363410,1766315947132,-876.15,0.00042693,120]
[399363411,1766315947158,-876.15,0.00042693,120]
[399363412,1766315947184,-876.15,0.00042693,120]
[399363413,1766315947211,-876.15,0.00042693,120]
[399363414,1766315947238,-876.15,0.00042693,120]
[399363415,1766315947265,-150.01,0.00042693,120]
[399363416,1766315947291,-876.15,0.00042693,120]
[399363417,1766315947318,-876.15,0.00042693,120]
[399363418,1766315947345,-876.15,0.00042693,120]
[399363419,1766315947373,-876.15,0.00042693,120]
[399363420,1766315947401,-876.15,0.00042693,120]
[399363421,1766315947429,-876.15,0.00042693,120]
[399363422,1766315947460,-876.15,0.00042693,120]
[399363423,1766315947488,-876.15,0.00042693,120]
[399363424,1766315947517,-876.15,0.00042693,120]
[399363425,1766315947545,-876.15,0.00042693,120]
[399363426,1766315947571,-876.15,0.00042693,120]
[399363427,1766315947599,-876.15,0.00042693,120]
[399363428,1766315947624,-876.33420158,0.00042693,120]
[399363429,1766315947651,-150.02,0.00042693,120]
[399363430,1766315947678,-150.02,0.00042693,120]
[399363431,1766315947704,-150.02,0.00042693,120]
[399363432,1766315947731,-150.02,0.00042693,120]
[399363433,1766315947757,-150.02,0.00042693,120]
[399363434,1766315947782,-150.02,0.00042693,120]
[399363435,1766315947809,-151.0,0.00042693,50]
[399363436,1766315947835,-151.0,0.00042693,50]
[399363437,1766315947863,-151.0,0.00042693,50]
[399363438,1766315947890,-151.0,0.00042693,50]
[399363439,1766315947916,-212.61721,0.00042693,50]
[399363440,1766315947942,-150.02,0.00042693,120]
[399363441,1766315947970,-150.02,0.00042693,120]
[399363442,1766315947997,-150.02,0.00042693,120]
[399363443,1766315948025,-150.02,0.00042693,120]
[399363444,1766315948053,-150.02,0.00042693,120]
[399363445,1766315948081,-150.02,0.00042693,120]
[399363446,1766315948108,-151.0,0.00042693,50]
[399363447,1766315948135,-168.850957,0.00042693,50]
[399363448,1766315948163,-150.02,0.00042693,120]
[399363449,1766315948190,-150.02,0.00042693,120]
[399363450,1766315948218,-150.02,0.00042693,120]
[399363451,1766315948246,-157.129789,0.00042693,50]
[399363452,1766315948273,-150.02,0.00042693,120]
[399363453,1766315948300,-150.02,0.00042693,120]
[399363454,1766315948326,-151.0,0.00042693,50]
[399363455,1766315948352,-151.0,0.00042693,50]
[399363456,1766315948380,-176.041344,0.00042693,50]
[399363457,1766315948407,-150.02,0.00042693,120]
[399363458,1766315948435,-150.02,0.00042693,120]
[399363459,1766315948465,-150.02,0.00042693,120]
[399363460,1766315948494,-150.02,0.00042693,120]
[399363461,1766315948524,-150.02,0.00042693,120]
[399363462,1766315948553,-151.0,0.00042693,50]
[399363463,1766315948595,-151.0,0.00042693,50]
[399363464,1766315948626,-150.02,0.00042693,120]
[399363465,1766315948656,-151.0,0.00042693,50]
[399363466,1766315948686,-151.0,0.00042693,50]
[399363467,1766315948717,-193.422615,0.00042693,50]
[399363468,1766315948746,-150.02,0.00042693,120]
[399363469,1766315948774,-150.02,0.00042693,120]
[399363470,1766315948803,-150.02,0.00042693,120]
[399363471,1766315948831,-150.02,0.00042693,120]
[399363472,1766315948859,-150.02,0.00042693,120]
[399363473,1766315948887,-150.02,0.00042693,120]
[399363474,1766315948916,-150.02,0.00042693,120]
[399363475,1766315948943,-150.02,0.00042693,120]
[399363476,1766315948995,-150.02,0.00042693,120]
[399363477,1766315949024,-150.02,0.00042693,120]
[399363478,1766315949058,-150.02,0.00042693,120]
[399363479,1766315949088,-150.02,0.00042693,120]
[399363480,1766315949118,-150.02,0.00042693,120]
[399363481,1766315949148,-150.02,0.00042693,120]
[399363482,1766315949177,-150.02,0.00042693,120]
[399363483,1766315949207,-150.02,0.00042693,120]
[399363484,1766315949236,-150.02,0.00042693,120]
[399363485,1766315949264,-150.02,0.00042693,120]
[399363486,1766315949292,-150.02,0.00042693,120]
[399363487,1766315949319,-150.02,0.00042693,120]
[399363488,1766315949347,-150.02,0.00042693,120]
[399363489,1766315949375,-150.02,0.00042693,120]
[399363490,1766315949403,-150.02,0.00042693,120]
[399363491,1766315949430,-150.02,0.00042693,120]
[399363492,1766315949461,-150.02,0.00042693,120]
[399363493,1766315949490,-150.02,0.00042693,120]
[399363494,1766315949525,-150.02,0.00042693,120]
[399363495,1766315949554,-150.02,0.00042693,120]
[399363496,1766315949582,-150.02,0.00042693,120]
[399363497,1766315949610,-150.02,0.00042693,120]
[399363498,1766315949639,-281.02,0.00042693,120]
[399363499,1766315949667,-150.02,0.00042693,120]
[399363500,1766315950085,-150.02,0.00042693,120]
[399363501,1766315950115,-150.02,0.00042693,120]
[399363502,1766315950143,-150.02,0.00042693,120]
[399363503,1766315950174,-150.02,0.00042693,120]
[399363504,1766315950201,-150.02,0.00042693,120]
[399363505,1766315950229,-150.02,0.00042693,120]
[399363506,1766315950257,-150.02,0.00042693,120]
[399363507,1766315950286,-150.02,0.00042693,120]
[399363508,1766315950313,-150.02,0.00042693,120]
[399363509,1766315950340,-150.02,0.00042693,120]
[399363510,1766315950366,-150.02,0.00042693,120]
[399363511,1766315950392,-150.02,0.00042693,120]
[399363512,1766315950422,-150.02,0.00042693,120]
[399363513,1766315950448,-150.02,0.00042693,120]
[399363514,1766315950478,-150.02,0.00042693,120]
[399363515,1766315950506,-150.02,0.00042693,120]
[399363516,1766315950534,-150.02,0.00042693,120]
[399363517,1766315950561,-150.02,0.00042693,120]
[399363518,1766315950587,-150.02,0.00042693,120]
[399363519,1766315950614,-150.02,0.00042693,120]
[399363520,1766315950640,-150.02,0.00042693,120]
[399363521,1766315950670,-150.02,0.00042693,120]
[399363522,1766315950697,-150.02,0.00042693,120]
[399363523,1766315950724,-150.02,0.00042693,120]
[399363524,1766315950757,-150.02,0.00042693,120]
[399363525,1766315950784,-150.02,0.00042693,120]
[399363526,1766315950810,-150.02,0.00042693,120]
[399363527,1766315950836,-150.02,0.00042693,120]
[399363528,1766315950864,-150.02,0.00042693,120]
[399363529,1766315950890,-150.02,0.00042693,120]
[399363530,1766315950916,-150.02,0.00042693,120]
[399363531,1766315950944,-150.02,0.00042693,120]
[399363532,1766315950972,-150.02,0.00042693,120]
[399363533,1766315950999,-150.02,0.00042693,120]
[399363534,1766315951027,-150.02,0.00042693,120]
[399363535,1766315951055,-150.02,0.00042693,120]
[399363536,1766315951082,-150.02,0.00042693,120]
[399363537,1766315951110,-150.02,0.00042693,120]
[399363538,1766315951147,-150.02,0.00042693,120]
[399363539,1766315951179,-150.02,0.00042693,120]
[399363540,1766315951209,-150.02,0.00042693,120]
[399363541,1766315951239,-151.0,0.00042693,50]
[399363542,1766315951269,-150.02,0.00042693,120]
[399363543,1766315951299,-150.02,0.00042693,120]
[399363544,1766315951331,-150.02,0.00042693,120]
[399363545,1766315951361,-150.02,0.00042693,120]
[399363546,1766315951390,-1098.0,0.00042693,30]
[399363547,1766315951418,-1098.0,0.00042693,30]
[399363548,1766315951449,-150.02,0.00042693,120]
[399363549,1766315951480,-1098.0,0.00042693,30]
[399363550,1766315951510,-150.02,0.00042693,120]
[399363551,1766315951540,-150.02,0.00042693,120]
[399363552,1766315951570,-150.02,0.00042693,120]
[399363553,1766315951605,-150.02,0.00042693,120]
[399363554,1766315951640,-150.02,0.00042693,120]
[399363555,1766315951669,-150.02,0.00042693,120]
[399363556,1766315951698,-150.02,0.00042693,120]
[399363557,1766315951729,-150.02,0.00042693,120]
[399363558,1766315951761,-150.02,0.00042693,120]
[399363559,1766315951792,-150.02,0.00042693,120]